bitfinex/quotes_ETHUSD_20250724
["timestamp","ask_amount","ask_price","bid_price","bid_amount"]
[1753362450221,0.4748,3651.9,3651.8,7.28]
[1753362450508,0.9633,3651.9,3651.8,7.28]
[1753362450713,0.8252,3651.8,3651.3,0.20316587]
[1753362450909,1.7485,3651.8,3651.3,0.20316587]
[1753362451108,1.7485,3651.8,3651.6,2.73850023]
[1753362451109,0.4348,3651.7,3651.6,2.73850023]
[1753362451407,0.4348,3651.7,3651.6,10.01850023]
[1753362451705,0.04,3651.9,3651.8,2.73837559]
[1753362451863,0.04,3651.9,3651.8,10.04575934]
[1753362452057,0.04,3651.9,3651.8,10.01837559]
[1753362452987,0.04,3651.9,3651.8,5.73837559]
[1753362453194,0.04,3651.9,3651.8,10.86605821]
[1753362453711,0.04,3651.9,3651.8,11.35795821]
[1753362454208,0.04,3651.9,3651.8,11.90795821]
[1753362455589,0.04,3651.9,3651.8,5.73837559]
[1753362455790,0.04,3651.9,3651.8,10.01737559]
[1753362455992,0.04,3651.9,3651.8,10.15417559]
[1753362456196,0.042,3651.9,3651.8,10.15417559]
[1753362456981,0.042,3651.9,3651.8,5.87517559]
[1753362457293,0.042,3651.9,3651.8,10.15417559]
[1753362457294,0.4768,3651.9,3651.8,10.15417559]
[1753362457884,0.4768,3651.9,3651.8,5.87517559]
[1753362458086,0.4768,3651.9,3651.8,10.01737559]
[1753362458395,0.9653,3651.9,3651.8,7.278]
[1753362458695,0.9653,3651.9,3651.3,0.20908392]
[1753362458696,1.445,3651.9,3651.3,0.20908392]
[1753362458901,0.1368,3651.7,3651.4,4.278]
[1753362459096,0.9233,3651.6,3651.5,3.0]
[1753362459400,0.9233,3651.6,3651.5,2.73860057]
[1753362459588,0.3848,3651.6,3651.5,5.73860057]
[1753362459784,0.1368,3651.7,3651.5,5.73860057]
[1753362460099,1.3619,3651.9,3651.8,2.73837559]
[1753362460100,0.042,3651.9,3651.8,2.73837559]
[1753362460302,0.8314,3652.8,3652.6,2.73774738]
[1753362460503,0.8314,3652.8,3652.0,3.0]
[1753362460678,0.8314,3652.8,3652.4,0.1368]
[1753362460879,0.8314,3652.8,3652.5,4.278]
[1753362461082,0.4885,3652.7,3652.5,4.278]
[1753362461405,0.4885,3652.6,3652.5,7.278]
[1753362461589,0.8314,3652.8,3652.6,2.73770338]
[1753362461773,1.3199,3652.8,3652.7,7.01570087]
[1753362462174,1.3199,3652.8,3652.7,2.73770087]
[1753362462369,1.2662,3652.8,3652.7,7.01570087]
[1753362462596,0.8314,3652.8,3652.7,7.01570087]
[1753362463099,1.7547,3652.8,3652.7,2.73770087]
[1753362463292,1.7547,3652.8,3652.5,7.278]
[1753362463493,0.8314,3652.8,3652.6,2.73777583]
[1753362463675,0.8314,3652.8,3652.7,2.73770087]
[1753362463871,0.8314,3652.8,3652.5,7.278]
[1753362463872,0.9233,3652.7,3652.5,7.278]
[1753362464202,0.8314,3652.8,3652.7,2.73770087]
[1753362464383,0.8314,3652.8,3652.7,7.01570087]
[1753362464583,1.2662,3652.8,3652.7,7.01570087]
[1753362464783,1.7547,3652.8,3652.7,4.278]
[1753362465007,1.93417,3652.8,3652.6,4.278]
[1753362465185,1.93417,3652.8,3651.4,1.0419]
[1753362465186,0.94399997,3652.7,3652.0,0.1368]
[1753362465372,0.94399997,3652.7,3651.3,0.20194851]
[1753362465373,0.8176,3652.0,3651.8,4.278]
[1753362465570,1.0601,3651.9,3651.8,4.278]
[1753362466394,0.5716,3651.9,3651.8,7.01637559]
[1753362466603,0.5716,3651.9,3651.8,4.278]
[1753362466919,1.0601,3651.9,3651.8,4.278]
[1753362467612,0.8003,3651.7,3650.3,0.7618]
[1753362467819,2.73837771,3651.8,3650.1,2.9180666]
[1753362467820,0.1368,3651.2,3650.7,2.87592616]
[1753362468017,0.1368,3651.2,3650.8,7.01711489]
[1753362468193,0.1368,3651.2,3650.5,2.73928978]
[1753362468194,0.7595,3651.0,3650.5,0.2051591]
[1753362468519,0.7595,3651.0,3650.2,2.73951231]
[1753362468520,0.1368,3650.8,3650.7,2.73914841]
[1753362468725,0.1368,3650.8,3650.6,4.277]
[1753362468883,0.5716,3650.8,3650.7,2.7392007]
[1753362469427,0.1368,3650.8,3650.7,2.7392007]
[1753362469609,0.4348,3651.2,3651.1,2.7389006]
[1753362469785,0.9233,3651.2,3650.7,3.0]
[1753362469979,2.73827721,3652.0,3650.1,0.04]
[1753362469980,2.73942741,3650.4,3650.1,0.04]
[1753362470209,9.09189184,3651.3,3650.1,0.04]
[1753362470210,0.1368,3650.2,3650.1,0.04]
[1753362470421,0.9291,3650.2,3650.1,0.04]
[1753362470621,4.80571591,3650.2,3650.1,0.04]
[1753362471131,4.82641588,3650.2,3650.1,0.04]
[1753362471296,4.80571591,3650.2,3650.1,0.04]
[1753362473094,4.82641588,3650.2,3650.1,0.04]
[1753362473792,5.37641588,3650.2,3650.1,0.04]
[1753362475082,8.37641588,3650.2,3650.1,1e-08]
[1753362475303,8.35571591,3650.2,3650.1,1e-08]
[1753362475623,3.51147646,3649.4,3649.3,0.001]
[1753362475824,7.94697643,3649.4,3649.3,0.001]
[1753362476124,8.87807646,3649.4,3649.3,0.001]
[1753362476431,9.42807646,3649.4,3649.3,0.001]
[1753362478234,4.60007646,3649.4,3649.3,0.001]
[1753362478438,1.8599,3649.4,3649.3,0.001]
[1753362478595,6.1389,3649.4,3649.3,0.001]
[1753362478795,0.9403,3649.4,3649.3,0.001]
[1753362479295,0.1368,3649.4,3649.3,2.74125155]
[1753362480225,0.6001,3649.4,3649.3,0.001]
[1753362480429,1.0656,3649.4,3649.3,0.001]
[1753362480850,0.1368,3649.4,3649.3,0.001]
[1753362481134,0.1368,3649.4,3649.3,2.74125155]
[1753362481344,9.09189184,3650.9,3649.3,2.74125155]
[1753362481345,0.1368,3649.7,3649.3,0.5531521]
[1753362481551,0.4633,3650.5,3650.2,2.73957016]
[1753362481834,0.4633,3650.5,3650.3,2.73949949]
[1753362481998,0.7885,3650.6,3649.9,3.0]
[1753362482196,1.47351149,3653.5,3649.8,2.7398702]
[1753362482197,5.0435,3651.2,3650.2,0.8152]
[1753362482442,5.0435,3651.2,3650.6,2.73920482]
[1753362482736,0.1368,3650.7,3650.6,2.73920482]
[1753362484353,0.1368,3650.7,3650.6,3.23740482]
[1753362485676,0.7635,3651.2,3650.8,2.73909706]
[1753362485973,0.1368,3650.7,3650.5,3.0]
[1753362486120,0.4633,3650.6,3650.2,2.73952141]
[1753362486327,0.6001,3650.5,3650.3,2.73947586]
[1753362486640,2.73907433,3650.9,3650.0,7.22240688]
[1753362486641,0.1368,3650.2,3650.0,0.20268268]
[1753362486849,0.48399997,3650.1,3649.6,2.739972]
[1753362487185,0.1368,3649.8,3649.7,2.73995122]
[1753362487320,0.4633,3650.9,3649.7,0.99579951]
[1753362487521,0.1368,3650.1,3649.8,2.73987609]
[1753362487759,0.1368,3650.1,3649.7,3.4982]
[1753362487941,0.1368,3650.1,3649.9,2.73978848]
[1753362488150,0.4633,3650.0,3649.7,3.0]
[1753362488327,0.1368,3650.1,3649.7,3.0]
[1753362488328,0.1368,3649.8,3649.7,3.0]
[1753362488733,0.1368,3649.8,3649.4,4.281]
[1753362489037,0.1368,3650.3,3650.1,2.73960159]
[1753362489343,0.1368,3650.3,3650.0,2.73970247]
[1753362489550,0.1368,3650.3,3649.7,0.635]
[1753362489721,0.1368,3650.3,3649.6,2.7400263]
[1753362489722,0.1368,3649.9,3649.6,2.7400263]
[1753362489918,0.1368,3649.9,3649.8,3.0]
[1753362490123,0.7909,3650.0,3649.7,4.281]
[1753362490357,0.1368,3649.8,3649.6,3.0]
[1753362490569,1.2904,3650.5,3649.9,2.73977331]
[1753362490731,0.1368,3650.0,3649.9,2.73977331]
[1753362491053,0.8271,3650.5,3650.1,2.73964705]
[1753362491256,0.1368,3650.1,3650.0,2.73970393]
[1753362491465,0.1368,3650.1,3649.6,3.1368]
[1753362491642,0.4633,3650.0,3649.6,10.02100715]
[1753362491964,0.1368,3649.8,3649.6,7.281]
[1753362492469,0.1368,3649.8,3649.6,3.0]
[1753362492666,0.1368,3649.8,3649.7,3.0]
[1753362493030,0.6001,3649.8,3649.7,3.0]
[1753362493248,0.1368,3649.8,3649.7,5.73995122]
[1753362493573,0.1368,3649.8,3649.7,7.98445012]
[1753362493774,0.1368,3649.8,3649.7,7.51425012]
[1753362494281,0.1368,3649.8,3649.7,3.4982]
[1753362495033,0.1368,3649.8,3649.7,3.0]
[1753362495373,0.1368,3649.8,3649.7,5.73995122]
[1753362495680,0.4655,3650.7,3649.7,5.73995122]
[1753362495681,7.8303539,3650.8,3650.1,2.73964373]
[1753362495884,0.8112,3650.8,3650.1,3.4982]
[1753362496175,0.1368,3650.5,3650.4,2.73942581]
[1753362496344,2.73890411,3651.1,3650.5,2.73929721]
[1753362496671,0.1368,3650.9,3650.5,2.73929721]
[1753362496843,0.1368,3650.9,3650.4,7.01939612]
[1753362497029,0.6001,3650.9,3650.4,7.01939612]
[1753362497679,0.4633,3650.8,3649.9,0.7974]
[1753362497903,2.73957787,3650.2,3650.0,4.28]
[1753362498099,2.73965096,3650.1,3649.5,0.1368]
[1753362498274,2.73965096,3650.1,3649.3,0.70545523]
[1753362498275,0.1368,3649.8,3649.6,4.281]
[1753362498475,0.6001,3649.8,3649.6,4.281]
[1753362499285,3.20325122,3649.7,3649.6,4.281]
[1753362499662,3.20325122,3649.7,3649.4,3.0]
[1753362499663,2.74003846,3649.6,3649.4,3.0]
[1753362499868,0.6001,3649.5,3649.4,3.0]
[1753362500469,0.1368,3649.5,3649.4,3.0]
[1753362501886,0.5688,3649.5,3649.4,3.0]
[1753362502087,2.74017646,3649.4,3649.3,4.281]
[1753362502311,2.74017646,3649.4,3649.3,0.001]
[1753362502508,3.17217646,3649.4,3649.3,0.001]
[1753362502812,0.432,3649.4,3649.3,0.001]
[1753362503747,2.87690932,3649.5,3649.3,0.001]
[1753362503951,0.1368,3649.5,3649.3,0.4992]
[1753362504195,0.1368,3649.5,3649.3,0.001]
[1753362505270,0.5688,3649.5,3649.3,0.001]
[1753362505483,0.5688,3649.5,3649.4,0.4982]
[1753362505484,0.1368,3649.5,3649.4,0.4982]
[1753362505898,0.1368,3649.5,3649.4,3.23837646]
[1753362506392,0.1368,3649.5,3649.4,4.4917377]
[1753362506573,0.1368,3649.5,3649.4,4.9204377]
[1753362507579,0.1368,3649.5,3649.4,1.75156124]
[1753362507771,0.1368,3649.5,3649.3,4.281]
[1753362507989,0.432,3649.4,3649.3,0.001]
[1753362508188,0.432,3649.4,3649.3,4.281]
[1753362508399,0.9494,3649.5,3649.3,4.281]
[1753362509119,0.1368,3649.5,3649.3,4.281]
[1753362509317,0.1368,3649.5,3649.4,2.74017646]
[1753362509613,0.1368,3649.5,3649.4,0.4726]
[1753362509973,0.1368,3649.5,3649.4,4.04309591]
[1753362510215,0.1368,3649.5,3649.4,4.47179591]
[1753362510568,0.432,3650.5,3649.4,4.47179591]
[1753362510569,2.74125233,3650.7,3649.4,7.47179591]
[1753362510804,0.002,3650.7,3650.3,2.73947485]
[1753362511112,0.002,3650.7,3650.4,2.7394234]
[1753362511273,0.002,3650.7,3650.4,0.4726]
[1753362511616,0.1368,3650.5,3650.4,4.28]
[1753362511772,0.1368,3650.5,3650.3,4.28]
[1753362511974,0.1368,3650.2,3649.7,0.6094]
[1753362512168,0.1368,3650.2,3649.4,1.25901945]
[1753362512169,0.1368,3650.0,3649.9,3.0]
[1753362512370,0.1368,3650.0,3649.9,5.73980109]
[1753362512995,0.1368,3650.0,3649.9,6.21240109]
[1753362513736,0.1368,3650.0,3649.4,0.1368]
[1753362514020,0.1368,3649.7,3649.6,2.74002332]
[1753362514188,0.1368,3649.7,3649.6,7.49162332]
[1753362514401,0.1368,3649.7,3649.6,4.7516]
[1753362516525,0.1368,3649.7,3649.6,4.279]
[1753362517017,0.1368,3649.7,3649.6,7.0190263]
[1753362517313,0.1368,3649.7,3649.6,7.4916263]
[1753362519530,0.4967,3650.6,3649.6,7.4916263]
[1753362519531,0.7847,3650.7,3649.6,9.32537023]
[1753362519818,0.002,3650.7,3649.8,0.8165]
[1753362519979,0.1368,3650.6,3650.3,2.73944093]
[1753362520185,0.1368,3650.6,3650.4,4.7516]
[1753362520396,2.73935077,3650.5,3650.4,4.279]
[1753362520595,0.432,3650.5,3650.4,4.279]
[1753362520898,0.1368,3650.6,3649.7,0.6094]
[1753362520899,0.1368,3650.6,3650.3,4.279]
[1753362521109,0.002,3650.7,3650.3,4.279]
[1753362521306,0.1368,3650.4,3650.3,4.279]
[1753362521919,4.58332581,3650.4,3650.3,4.279]
[1753362522132,4.58332581,3650.4,3649.5,3.7547]
[1753362522133,1.8439,3650.4,3649.5,3.7547]
[1753362522339,1.2751,3650.4,3649.6,4.279]
[1753362522632,1.2751,3650.4,3649.4,2.74015277]
[1753362522633,0.1368,3649.8,3649.3,0.001]
[1753362522838,0.84229997,3649.7,3649.3,0.001]
[1753362523149,0.1368,3649.5,3649.3,0.001]
[1753362523752,3.30890423,3649.5,3649.3,0.001]
[1753362523959,3.66887646,3649.4,3649.3,0.001]
[1753362524106,3.68957643,3649.4,3649.3,0.001]
[1753362525536,3.19287643,3649.4,3649.3,0.001]
[1753362525832,4.51377643,3649.4,3649.3,0.001]
[1753362527135,4.51377643,3649.4,3649.0,0.001]
[1753362527136,12.61829689,3649.1,3649.0,0.001]
[1753362527431,12.61829689,3649.1,3648.1,0.041]
[1753362527432,2.74107779,3648.2,3648.1,0.041]
[1753362527621,3.53457779,3648.2,3648.1,0.041]
[1753362527826,4.48397776,3648.2,3648.1,0.041]
[1753362528133,4.46327779,3648.2,3648.1,0.041]
[1753362528499,3.96657779,3648.2,3648.1,0.041]
[1753362529802,4.46327779,3648.2,3648.1,0.041]
[1753362530511,5.0915,3648.6,3648.1,0.041]
[1753362530716,1.2542,3648.9,3648.3,2.74094182]
[1753362530933,0.02069997,3648.8,3648.1,0.041]
[1753362531135,2.74083651,3648.6,3648.1,0.041]
[1753362531436,2.76158042,3648.5,3648.1,0.5136]
[1753362531654,2.74100848,3648.3,3648.1,0.041]
[1753362531837,0.02069997,3648.2,3648.1,0.041]
[1753362532022,3.20447776,3648.2,3648.1,0.041]
[1753362532197,3.70117776,3648.2,3648.1,0.041]
[1753362533105,3.53126488,3648.4,3648.1,0.041]
[1753362533106,0.7903,3648.4,3648.1,0.041]
[1753362533432,3.18377779,3648.2,3648.1,0.041]
[1753362533935,3.68047779,3648.2,3648.1,0.041]
[1753362535004,4.43627779,3648.2,3648.1,0.041]
[1753362535842,8.71627779,3648.2,3648.1,0.041]
[1753362536728,5.74082439,3648.6,3648.1,0.041]
[1753362536729,0.807,3648.5,3648.1,0.041]
[1753362536934,2.74099865,3648.4,3648.1,0.041]
[1753362537130,2.74051105,3649.0,3648.1,0.041]
[1753362537131,0.1368,3648.2,3648.1,0.041]
[1753362537334,0.4427,3649.0,3648.1,3.52656037]
[1753362537335,4.30069997,3648.9,3648.1,3.52656037]
[1753362537563,0.1368,3648.5,3648.1,3.24833031]
[1753362537864,0.1368,3648.5,3648.2,0.4726]
[1753362538168,4.30069997,3648.9,3648.1,0.041]
[1753362538169,0.02069997,3648.4,3648.1,0.041]
[1753362538468,0.1368,3648.2,3648.1,0.5136]
[1753362538640,0.1368,3648.2,3648.1,0.502]
[1753362540133,0.1368,3648.2,3648.1,3.24315292]
[1753362540339,1.2104,3649.0,3648.1,3.24315292]
[1753362540340,7.02052269,3649.0,3648.1,2.34054417]
[1753362540540,0.1368,3648.6,3648.3,2.74097383]
[1753362540763,0.1368,3648.6,3648.4,0.461]
[1753362540962,7.81840361,3649.3,3648.6,2.74072579]
[1753362541163,0.1368,3648.8,3648.7,0.461]
[1753362541376,0.1368,3648.8,3648.7,3.20170216]
[1753362541540,0.1368,3648.8,3648.7,0.461]
[1753362541735,0.1368,3648.8,3648.7,3.20170216]
[1753362542460,0.1368,3648.8,3648.4,0.461]
[1753362542661,0.1368,3648.5,3648.4,0.461]
[1753362542868,0.1368,3648.5,3648.4,3.20192015]
[1753362543068,4.28,3649.3,3648.7,2.74063847]
[1753362543376,3.19823311,3649.6,3648.6,2.74074601]
[1753362543377,0.1368,3648.8,3648.6,2.74074601]
[1753362543543,0.1368,3648.8,3648.3,0.1368]
[1753362544054,0.1368,3648.8,3648.4,0.461]
[1753362544253,0.1368,3648.8,3648.3,0.1368]
[1753362544254,0.1368,3648.8,3648.3,4.4168]
[1753362544480,0.15749997,3648.7,3648.4,0.461]
[1753362544788,0.1368,3648.7,3648.6,2.74077728]
[1753362544957,1.2272,3649.9,3649.2,2.74031361]
[1753362545161,0.1368,3649.3,3649.2,2.74031361]
[1753362545482,6.582,3650.3,3649.6,2.7400263]
[1753362545483,1.2272,3650.3,3649.6,2.7400263]
[1753362545699,0.1388,3649.7,3649.6,2.7400263]
[1753362545902,0.002,3649.7,3649.6,4.81381008]
[1753362546048,0.002,3649.7,3649.6,3.3378263]
[1753362546384,0.002,3649.7,3649.6,3.2010263]
[1753362548702,0.002,3649.7,3649.4,0.7795]
[1753362548999,0.002,3649.7,3649.5,4.279]
[1753362549361,0.002,3649.7,3649.4,4.74]
[1753362549576,0.1368,3649.6,3649.5,0.461]
[1753362549982,0.1368,3649.6,3649.5,3.20110138]
[1753362550153,0.002,3649.7,3649.5,1.94923287]
[1753362550355,0.002,3649.7,3649.6,0.9272]
[1753362550565,0.002,3649.7,3649.6,3.6672263]
[1753362550756,0.002,3649.7,3649.6,3.2062263]
[1753362550982,0.002,3649.7,3649.6,3.6672263]
[1753362551479,0.002,3649.7,3649.6,0.9272]
[1753362552998,0.002,3649.7,3649.6,0.461]
[1753362553200,0.002,3649.7,3649.6,4.278]
[1753362553490,0.002,3649.7,3649.6,4.739]
[1753362554166,0.002,3649.7,3649.6,4.278]
[1753362554478,0.002,3649.7,3649.6,4.739]
[1753362555068,0.002,3649.7,3649.6,7.9452263]
[1753362555676,0.002,3649.7,3649.6,5.2052]
[1753362555868,0.002,3649.7,3649.6,4.739]
[1753362556068,0.002,3649.7,3649.6,4.278]
[1753362556593,0.002,3649.7,3649.4,3.0]
[1753362556792,0.002,3649.7,3649.4,0.461]
[1753362557008,0.002,3649.7,3649.5,4.278]
[1753362557368,0.1368,3649.6,3649.5,4.278]
[1753362557681,0.002,3649.7,3649.5,5.2052]
[1753362557994,0.002,3649.7,3649.6,4.4850263]
[1753362559623,0.002,3649.7,3649.6,0.461]
[1753362559920,0.002,3649.7,3649.3,0.7525]
[1753362560206,0.1388,3649.7,3649.4,4.277]
[1753362560565,3.2129755,3649.7,3649.1,0.1368]
[1753362560783,3.2129755,3649.7,3649.2,4.277]
[1753362560784,0.7558,3649.5,3649.2,4.277]
[1753362561095,0.7558,3649.5,3648.8,2.74059914]
[1753362561096,0.1368,3649.1,3649.0,4.277]
[1753362561263,0.1368,3649.1,3648.8,4.277]
[1753362561463,0.1368,3648.9,3648.8,4.277]
[1753362561698,0.1368,3648.9,3648.8,7.738]
[1753362561894,0.1368,3648.9,3648.8,10.47862705]
[1753362563094,0.1368,3648.9,3648.4,0.461]
[1753362563292,1.1839,3648.8,3648.5,4.277]
[1753362563468,1.04379997,3648.7,3648.1,7.2228]
[1753362563810,0.1368,3648.4,3648.2,4.277]
[1753362563966,0.1368,3648.4,3648.3,2.74100265]
[1753362564276,0.1368,3648.4,3648.2,4.277]
[1753362564277,0.1368,3648.4,3648.2,4.738]
[1753362564478,0.1368,3648.4,3648.2,4.277]
[1753362565001,2.74107779,3648.2,3648.1,0.041]
[1753362565200,4.07827776,3648.2,3648.1,0.041]
[1753362565369,4.05757779,3648.2,3648.1,0.041]
[1753362566294,4.51577779,3648.2,3648.1,0.041]
[1753362567299,4.05757779,3648.2,3648.1,0.041]
[1753362567504,0.1368,3648.2,3648.1,0.041]
[1753362567702,0.8247,3648.7,3648.2,2.74107779]
[1753362567872,0.1368,3648.4,3648.3,0.461]
[1753362568206,0.1368,3648.4,3648.1,0.4729]
[1753362568207,0.1368,3648.4,3648.1,0.041]
[1753362568407,0.1368,3648.4,3648.2,3.20206956]
[1753362568700,2.74258083,3648.9,3648.2,7.01806956]
[1753362568997,0.002,3648.9,3648.3,0.4695]
[1753362569225,0.9204,3648.8,3648.1,0.041]
[1753362569402,2.74107779,3648.2,3648.1,0.041]
[1753362569602,2.76177776,3648.2,3648.1,0.041]
[1753362569802,3.68217776,3648.2,3648.1,0.041]
[1753362570008,4.50437776,3648.2,3648.1,0.041]
[1753362570204,4.48367779,3648.2,3648.1,0.041]
[1753362570806,3.99137779,3648.2,3648.1,0.041]
[1753362571310,0.8222,3648.2,3648.1,0.041]
[1753362571496,0.1368,3648.3,3648.1,0.041]
[1753362571806,2.87780923,3648.3,3648.1,0.041]
[1753362571996,2.74107779,3648.2,3648.1,0.041]
[1753362572194,0.1368,3648.3,3648.1,0.041]
[1753362572507,0.1368,3648.3,3648.2,0.4695]
[1753362573018,0.8143,3648.8,3648.3,2.74095162]
[1753362573321,0.1368,3648.4,3648.2,2.74102792]
[1753362573507,0.1368,3648.4,3648.3,2.74100265]
[1753362573891,0.1368,3648.4,3648.3,3.21050265]
[1753362575212,0.1368,3648.4,3648.1,0.041]
[1753362575414,0.4923,3648.3,3648.1,0.041]
[1753362575599,0.58559997,3648.2,3648.1,0.041]
[1753362575922,0.1368,3648.2,3648.1,0.041]
[1753362576291,3.30597779,3648.2,3648.1,0.041]
[1753362576808,0.5649,3648.2,3648.1,0.041]
[1753362577223,3.30597779,3648.2,3648.1,0.041]
[1753362577426,0.5649,3648.2,3648.1,0.041]
[1753362577602,0.1368,3648.2,3648.1,0.041]
[1753362577802,0.7586,3648.9,3648.2,0.7582]
[1753362578123,0.7586,3648.9,3648.3,3.21050265]
[1753362578124,0.1368,3648.4,3648.3,3.21050265]
[1753362578298,0.1368,3648.7,3648.6,2.74071626]
[1753362578503,0.1368,3648.7,3648.6,3.21021626]
[1753362578800,0.1368,3648.7,3648.6,0.4695]
[1753362579123,0.1368,3648.7,3648.5,2.74084472]
[1753362579426,0.1368,3648.7,3648.5,3.21034472]
[1753362579588,0.1368,3648.7,3648.6,3.21027728]
[1753362580622,0.1368,3648.7,3648.6,0.4695]
[1753362581331,0.1368,3648.7,3648.6,3.21027728]
[1753362582431,0.1368,3648.7,3648.6,2.74077728]
[1753362582629,0.002,3648.9,3648.8,5.74062705]
[1753362582835,0.1368,3649.6,3648.8,8.0997]
[1753362583043,0.1388,3649.7,3649.6,2.7400263]
[1753362583239,0.002,3649.7,3649.6,7.8397263]
[1753362583403,0.002,3649.7,3649.6,8.7411263]
[1753362583801,0.002,3649.7,3649.6,5.5692]
[1753362584108,0.002,3649.7,3649.6,8.3092263]
[1753362585038,0.002,3649.7,3649.6,4.277]
[1753362585242,0.002,3649.7,3649.2,0.7764]
[1753362585428,0.002,3649.7,3649.3,4.277]
[1753362585429,0.1368,3649.6,3649.3,4.277]
[1753362586196,0.1368,3649.6,3649.4,0.4695]
[1753362586638,0.1368,3649.6,3649.5,0.4695]
[1753362587236,0.1368,3649.6,3649.3,4.277]
[1753362587434,0.1368,3649.6,3649.3,4.7465]
[1753362587943,0.1368,3649.6,3649.4,4.276]
[1753362588238,0.1368,3649.6,3649.5,4.276]
[1753362589196,0.1368,3649.6,3649.5,4.7455]
[1753362589400,0.002,3649.7,3649.5,4.7455]
[1753362589401,0.002,3649.7,3649.6,2.7400263]
[1753362589641,0.002,3649.7,3649.6,3.5511263]
[1753362589841,0.002,3649.7,3649.6,3.9830263]
[1753362590007,0.002,3649.7,3649.6,1.2806]
[1753362590318,0.002,3649.7,3649.5,4.276]
[1753362590521,0.002,3649.7,3649.6,0.4695]
[1753362590719,0.002,3649.7,3649.6,3.2095263]
[1753362591767,0.002,3649.7,3649.6,3.80715589]
[1753362591946,0.002,3649.7,3649.6,5.52845615]
[1753362592241,0.002,3649.7,3649.6,8.50105589]
[1753362594940,0.002,3649.7,3649.6,8.05545589]
[1753362595113,0.002,3649.7,3649.6,10.4845263]
[1753362595433,0.002,3649.7,3649.6,11.0669263]
[1753362595850,0.002,3649.7,3649.6,3.6063]
[1753362596019,0.002,3649.7,3649.6,7.7445]
[1753362597255,0.002,3649.7,3649.6,10.4845263]
[1753362597615,0.002,3649.7,3649.6,7.7445]
[1753362597845,0.46,3649.7,3649.2,0.21042087]
[1753362598038,0.46,3649.7,3649.4,3.0]
[1753362598039,0.1388,3649.7,3649.4,3.0]
[1753362598251,0.1388,3649.7,3649.5,0.4695]
[1753362598443,0.1388,3649.7,3649.6,4.274]
[1753362600156,0.1388,3649.7,3649.4,0.4538]
[1753362600339,0.1388,3649.7,3649.5,4.274]
[1753362600856,0.5968,3649.7,3649.1,0.1368]
[1753362601151,0.1368,3649.3,3649.2,7.274]
[1753362601860,0.1388,3649.7,3649.6,2.7400263]
[1753362602062,0.1388,3649.7,3649.6,7.4678263]
[1753362602232,0.1388,3649.7,3649.6,4.274]
[1753362602425,0.801,3649.6,3649.2,0.1368]
[1753362602619,2.74022755,3649.4,3649.3,4.274]
[1753362602847,0.5948,3649.4,3649.3,4.274]
[1753362603049,0.1368,3649.4,3649.3,4.274]
[1753362605224,0.5948,3649.4,3649.3,4.274]
[1753362605757,0.1368,3649.4,3649.3,4.274]
[1753362607759,3.33501133,3649.4,3648.8,2.95023723]
[1753362607968,0.5948,3649.4,3649.0,3.0]
[1753362608168,0.1368,3649.4,3649.1,4.273]
[1753362608326,0.1368,3649.4,3649.2,4.273]
[1753362609226,0.1368,3649.4,3649.3,0.7567]
[1753362609536,0.002,3649.7,3649.6,2.7400263]
[1753362609736,0.002,3649.7,3649.6,7.04042656]
[1753362609941,0.002,3649.7,3649.6,7.9124263]
[1753362610142,0.002,3649.7,3649.6,8.0492263]
[1753362610344,0.002,3649.7,3649.6,12.93282994]
[1753362613168,0.002,3649.7,3649.6,13.69222994]
[1753362614871,0.002,3649.7,3649.6,13.82987632]
[1753362615371,1e-08,3649.7,3649.6,13.82987632]
[1753362615732,1e-08,3649.7,3649.6,9.55687632]
[1753362616070,1e-08,3649.7,3649.6,13.82887632]
[1753362616461,1e-08,3649.7,3649.6,9.41922994]
[1753362616650,1e-08,3649.7,3649.6,13.69122994]
[1753362617937,1e-08,3649.7,3649.6,9.41922994]
[1753362618149,1e-08,3649.7,3649.6,8.97362994]
[1753362618350,1e-08,3649.7,3649.6,13.24562994]
[1753362619384,1e-08,3649.7,3649.6,12.48622994]
[1753362620077,1e-08,3649.7,3649.6,13.70732994]
[1753362622090,1e-08,3649.7,3649.6,13.70632994]
[1753362623999,1e-08,3649.7,3649.6,8.98972994]
[1753362624306,1e-08,3649.7,3649.6,12.95652994]
[1753362624594,1e-08,3649.7,3649.6,13.78722994]
[1753362625156,1e-08,3649.7,3649.6,18.10933994]
[1753362625361,1e-08,3649.7,3649.6,17.22777094]
[1753362626668,0.002,3650.5,3650.4,3.51592581]
[1753362626884,0.002,3650.5,3650.4,11.27431839]
[1753362627066,0.002,3650.5,3650.4,12.19941839]
[1753362627661,0.002,3650.5,3650.4,11.72811839]
[1753362628098,0.002,3650.5,3650.4,12.19941839]
[1753362628704,0.002,3650.5,3650.4,7.00431839]
[1753362628876,0.002,3650.5,3650.4,7.14622581]
[1753362629076,0.002,3650.5,3650.4,10.00942581]
[1753362629352,0.002,3650.5,3650.4,10.49102581]
[1753362629902,0.002,3650.5,3650.4,10.00942581]
[1753362632308,0.002,3650.5,3650.4,10.00842581]
[1753362633378,0.4655,3650.5,3650.4,10.00842581]
[1753362633573,0.002,3650.5,3650.4,10.00842581]
[1753362636415,0.002,3650.5,3650.4,11.29689946]
[1753362636582,0.002,3650.5,3650.4,13.04359946]
[1753362637225,0.04,3650.9,3650.4,13.04359946]
[1753362637423,1e-08,3650.9,3650.8,6.50922567]